lending/lending_fUSD_20240705
["ID","MTS","AMOUNT","RATE_DAILY","PERIOD"]
[331255866,1720163433267,-186.24854646,0.000189,2]
[331255867,1720163433276,-326.2715088,0.000189,2]
[331255868,1720163433286,-2547.05802925,0.000189,2]
[331255869,1720163433298,-594.12744724,0.00018919,2]
[331255870,1720163433308,-317.42017498,0.00018989,2]
[331255871,1720163433318,-152.19,0.00018989,2]
[331255872,1720163433328,-533.66826194,0.00018999,2]
[331255873,1720163433338,-155.0,0.00018999,2]
[331255874,1720163433348,-111759.6755331,0.00018999,2]
[331255875,1720163433765,-681.39069848,0.00018999,2]
[331255876,1720163433777,-3658.6,0.00018999,2]
[331255877,1720163433791,-10837.23667898,0.00018999,2]
[331255878,1720163433803,-401.61999996,0.00018999,2]
[331255879,1720163433815,-904.96532417,0.00018999,2]
[331255880,1720163433827,-357.46371413,0.00018999,2]
[331255881,1720163433838,-5426.6,0.00018999,2]
[331255882,1720163433850,-428.45648914,0.00018999,2]
[331255883,1720163433862,-2186.65209013,0.00018999,2]
[331255884,1720163433873,-9608.56602444,0.00018999,2]
[331255885,1720163433885,-653.78731251,0.00018999,2]
[331255890,1720163438966,-2575.58442492,0.00015535,2]
[331255892,1720163438977,-1000.0,0.00018596,2]
[331255894,1720163438988,-410.88428034,0.00018864,2]
[331255895,1720163438997,-544.76386976,0.00018864,2]
[331255897,1720163439007,-321.22117304,0.00018919,2]
[331255899,1720163439017,-257712.13371995,0.00018999,2]
[331255901,1720163439030,-81573.39024451,0.00018999,2]
[331255903,1720163439040,-1084.62,0.00019,2]
[331255905,1720163439053,-300.0,0.00019,2]
[331255907,1720163439063,-5000.0,0.00019,2]
[331255909,1720163439074,-370.76260341,0.00019069,2]
[331255911,1720163439085,-155.0,0.00019069,2]
[331255913,1720163439095,-227.17477303,0.00019077,2]
[331255915,1720163439105,-250.0,0.00019178,2]
[331255917,1720163439116,-600.0,0.00019299,2]
[331255919,1720163439128,-3000.0,0.00019302,2]
[331255921,1720163439141,-700.0,0.00019302,2]
[331255923,1720163439151,-229.38218945,0.0001935,2]
[331255925,1720163439162,-229.38218945,0.0001935,2]
[331255927,1720163439172,-304.19422962,0.00019354,2]
[331255929,1720163439183,-263.58284568,0.00019399,2]
[331255931,1720163439194,-332.01755418,0.00019399,2]
[331255933,1720163439204,-556.24,0.00019431,2]
[331255935,1720163439217,-485.7082415,0.0001945,5]
[331255937,1720163439228,-2547.05802918,0.0001947,2]
[331255939,1720163439238,-2500.0,0.000195,2]
[331255941,1720163439248,-2187.0,0.000195,2]
[331255943,1720163439259,-8186.1587,0.00019625,2]
[331255945,1720163439270,-1284.9637,0.00019625,2]
[331255947,1720163439280,-152.19,0.0001971,2]
[331255949,1720163439291,-5611.54954464,0.0001972,2]
[331255951,1720163439305,-3371.2739114,0.0001972,2]
[331255953,1720163439316,-297.717,0.00019726,2]
[331255955,1720163439327,-197.1122,0.00019726,2]
[331255957,1720163439337,-152.19,0.0001979,2]
[331255959,1720163439347,-152.19,0.0001979,2]
[331255961,1720163439357,-2283.9120158,0.00019792,2]
[331255963,1720163439367,-603.8559911,0.00019792,2]
[331255964,1720163439377,-33948.53480617,0.00019792,2]
[331255967,1720163439390,-10651.93547108,0.00019792,2]
[331255969,1720163439402,-2027.31668755,0.00019792,2]
[331255971,1720163439414,-2838.32758398,0.00019792,2]
[331255973,1720163439427,-8708.04797882,0.00019792,2]
[331255975,1720163439438,-292.33438899,0.00019799,2]
[331255977,1720163439449,-2191.0,0.000198,2]
[331255979,1720163439460,-500.0,0.000198,2]
[331255981,1720163439470,-500.0,0.000198,2]
[331255983,1720163439480,-500.0,0.000198,2]
[331255985,1720163439490,-500.0,0.000198,2]
[331255987,1720163439500,-500.0,0.000198,2]
[331255989,1720163439510,-500.0,0.000198,2]
[331255991,1720163439520,-500.0,0.000198,2]
[331255993,1720163439530,-500.0,0.000198,2]
[331255995,1720163439541,-500.0,0.000198,2]
[331255997,1720163439552,-500.0,0.000198,2]
[331255999,1720163439563,-500.0,0.000198,2]
[331256001,1720163439573,-500.0,0.000198,2]
[331256002,1720163439585,-500.0,0.000198,2]
[331256004,1720163439597,-500.0,0.000198,2]
[331256006,1720163439608,-500.0,0.000198,2]
[331256008,1720163439619,-500.0,0.000198,2]
[331256010,1720163439629,-500.0,0.000198,2]
[331256012,1720163439638,-500.0,0.000198,2]
[331256014,1720163439649,-500.0,0.000198,2]
[331256016,1720163439659,-500.0,0.000198,2]
[331256018,1720163439669,-500.0,0.000198,2]
[331256020,1720163439680,-500.0,0.000198,2]
[331256022,1720163439690,-500.0,0.000198,2]
[331256024,1720163439700,-500.0,0.000198,2]
[331256025,1720163439710,-500.0,0.000198,2]
[331256027,1720163439721,-500.0,0.000198,2]
[331256028,1720163439731,-500.0,0.000198,2]
[331256029,1720163439741,-500.0,0.000198,2]
[331256030,1720163439751,-500.0,0.000198,2]
[331256031,1720163439762,-500.0,0.000198,2]
[331256032,1720163439772,-500.0,0.000198,2]
[331256033,1720163439783,-500.0,0.000198,2]
[331256034,1720163439794,-500.0,0.000198,2]
[331256035,1720163439805,-500.0,0.000198,2]
[331256036,1720163439814,-500.0,0.000198,2]
[331256037,1720163439824,-500.0,0.000198,2]
[331256038,1720163439834,-500.0,0.000198,2]
[331256039,1720163439843,-500.0,0.000198,2]
[331256040,1720163439853,-500.0,0.000198,2]
[331256041,1720163439863,-500.0,0.000198,2]
[331256042,1720163439873,-500.0,0.000198,2]
[331256043,1720163439883,-500.0,0.000198,2]
[331256044,1720163439893,-500.0,0.000198,2]
[331256045,1720163439903,-500.0,0.000198,2]
[331256046,1720163439913,-500.0,0.000198,2]
[331256047,1720163439923,-500.0,0.000198,2]
[331256048,1720163439933,-500.0,0.000198,2]
[331256049,1720163439943,-500.0,0.000198,2]
[331256050,1720163439954,-500.0,0.000198,2]
[331256051,1720163439963,-500.0,0.000198,2]
[331256052,1720163439973,-500.0,0.000198,2]
[331256053,1720163439983,-500.0,0.000198,2]
[331256054,1720163439992,-500.0,0.000198,2]
[331256055,1720163440002,-500.0,0.000198,2]
[331256056,1720163440012,-500.0,0.000198,2]
[331256057,1720163440022,-500.0,0.000198,2]
[331256058,1720163440033,-500.0,0.000198,2]
[331256059,1720163440043,-500.0,0.000198,2]
[331256060,1720163440054,-500.0,0.000198,2]
[331256061,1720163440063,-500.0,0.000198,2]
[331256062,1720163440073,-500.0,0.000198,2]
[331256063,1720163440083,-500.0,0.000198,2]
[331256064,1720163440092,-500.0,0.000198,2]
[331256065,1720163440102,-500.0,0.000198,2]
[331256066,1720163440261,-500.0,0.000198,2]
[331256067,1720163440271,-500.0,0.000198,2]
[331256068,1720163440281,-500.0,0.000198,2]
[331256069,1720163440291,-22266.90169049,0.000198,3]
[331256070,1720163440305,-13095.53855043,0.000198,3]
[331256071,1720163440317,-2236.30828066,0.000198,3]
[331256072,1720163440924,-1760.19550154,0.00018759,2]
[331256073,1720163440934,-11851.72399846,0.000198,3]
[331256074,1720163440947,-54344.00000001,0.000198,3]
[331256075,1720163440959,-611.79875519,0.000198,3]
[331256076,1720163441160,-456.96,0.000198,3]
[331256077,1720163441172,-292.805,0.000198,3]
[331256116,1720163446491,-265.875,0.00017603,2]
[331256119,1720163446501,-6089.58644383,0.00017617,2]
[331256121,1720163446510,-527.45944513,0.00019725,2]
[331256123,1720163446520,-9395.11853983,0.000198,3]
[331256125,1720163447330,-460.496,0.000198,3]
[331256126,1720163447344,-119575.98429504,0.000198,3]
[331256127,1720163447419,-7015.7170193,0.000198,3]
[331256128,1720163447430,-315.936,0.000198,3]
[331256129,1720163467223,500.0,0.00031597,30]
[331256130,1720163470050,150.0,0.00031597,30]
[331256139,1720164148488,160.0,0.00031598,30]
[331256141,1720164407046,1290.34138626,0.00011199,2]
[331256142,1720164407073,647.0872517,0.00011199,2]
[331256148,1720164485713,8604.653573,0.00011199,2]
[331256149,1720164485737,11220.67357887,0.00011199,2]
[331256158,1720164632834,-881.35624115,0.00013516,2]
[331256159,1720164632844,-4967.70673096,0.00013574,2]
[331256160,1720164632859,-5314.0001,0.00013574,2]
[331256161,1720164632871,-27568.75587316,0.00013574,2]
[331256163,1720164632880,-1903.65279599,0.00013574,2]
[331256165,1720164632890,-315.7243,0.00013749,2]
[331256167,1720164632899,-264.40040348,0.00013759,2]
[331256169,1720164632908,-297.70719904,0.00013759,2]
[331256171,1720164632918,-221.7900275,0.00013759,2]
[331256173,1720164632927,-155.0,0.00013759,2]
[331256175,1720164632937,-266.43574909,0.00013802,2]
[331256177,1720164632947,-227.17477303,0.00013849,2]
[331256179,1720164632957,-155.0,0.00013899,2]
[331256181,1720164632966,-158.96592151,0.00014799,2]
[331256183,1720164632979,-1736.77,0.00014973,2]
[331256185,1720164632988,-459.07,0.00014973,2]
[331256187,1720164632997,-499.99,0.00014973,2]
[331256189,1720164633007,-2474.61486964,0.00015,2]
[331256190,1720164633017,-546.39,0.00015855,2]
[331256191,1720164633027,-2132.21,0.00015855,2]
[331256192,1720164633038,-1342.0604415,0.00017199,2]
[331256193,1720164633048,-273.22,0.00017461,2]
[331256194,1720164633058,-321.88,0.00017466,2]
[331256195,1720164633067,-150.0,0.00017508,2]
[331256196,1720164633076,-23900.0,0.00017509,2]
[331256197,1720164633086,-200.0,0.00017512,2]
[331256198,1720164633095,-250.0,0.00017578,2]
[331256199,1720164633106,-250.0,0.00017581,2]
[331256200,1720164633116,-1500.0,0.00017586,2]
[331256201,1720164633125,-800.0,0.00017641,2]
[331256202,1720164633134,-370.76260341,0.00018,2]
[331256203,1720164633144,-500.0,0.00018054,2]
[331256204,1720164633153,-200.0,0.00018054,2]
[331256205,1720164633163,-161.7,0.00018064,2]
[331256206,1720164633172,-2493.83634321,0.00018081,2]
[331256207,1720164633182,-546.39,0.00018118,2]
[331256208,1720164633193,-267.945,0.00018175,2]
[331256209,1720164633203,-619.0,0.0001829,2]
[331256210,1720164633213,-444.0,0.0001829,2]
[331256211,1720164633222,-449.0,0.0001829,2]
[331256212,1720164633232,-813.0,0.0001829,2]
[331256213,1720164633242,-1305.0,0.0001829,2]
[331256214,1720164633251,-2375.0,0.0001829,2]
[331256215,1720164633260,-3224.0,0.0001829,2]
[331256216,1720164633270,-1988.0,0.0001829,2]
[331256217,1720164633280,-283.0,0.0001829,2]
[331256218,1720164633289,-548.0,0.0001829,2]
[331256219,1720164633299,-1199.0,0.0001829,2]
[331256220,1720164633308,-1275.0,0.0001829,2]
[331256221,1720164633317,-1664.0,0.0001829,2]
[331256222,1720164633330,-291.0,0.0001829,2]
[331256223,1720164633471,-5811.0,0.0001829,2]
[331256224,1720164633502,-5177.0,0.0001829,2]
[331256225,1720164633512,-1760.19550154,0.00018649,2]
[331256226,1720164633521,-2900.0,0.00018754,2]
[331256227,1720164633530,-2800.0,0.00018754,2]
[331256228,1720164633540,-1055.987,0.00018799,2]
[331256229,1720164633550,-544.76386976,0.00018835,2]
[331256230,1720164633560,-209.73,0.00018849,30]
[331256231,1720164633569,-155.28532898,0.00018899,2]
[331256232,1720164633582,-155.0,0.00018999,2]
[331256233,1720164633592,-155.0,0.00018999,2]
[331256234,1720164633601,-498.91546128,0.00018999,2]
[331256235,1720164633611,-1250.0,0.00019,2]
[331256236,1720164633621,-5000.0,0.00019,2]
[331256237,1720164633631,-155.0,0.00019069,2]
[331256238,1720164633640,-267.945,0.00019129,2]
[331256239,1720164633650,-4685.99,0.00019178,2]
[331256240,1720164633659,-250.0,0.00019178,2]
[331256241,1720164633669,-397.0,0.00019212,2]
[331256242,1720164633678,-368.59840723,0.00019229,2]
[331256243,1720164633687,-158.9659215,0.00019299,2]
[331256244,1720164633697,-2900.0,0.00019302,2]
[331256245,1720164633706,-2800.0,0.00019302,2]
[331256246,1720164633715,-300.0,0.00019451,2]
[331256247,1720164633724,-181.06335149,0.00019451,2]
[331256248,1720164633734,-1358.36318627,0.000195,2]
[331256249,1720164634139,-1141.63681373,0.000195,2]
[331256250,1720164634150,-1000.0,0.000195,2]
[331256251,1720164634159,-191.87020388,0.00019692,2]
[331256252,1720164634171,-61.34639612,0.00019692,2]
[331256253,1720164634180,-199.2846,0.00019692,2]
[331256254,1720164634189,-1946.77303467,0.00019695,2]
[331256255,1720164634200,-553.22696533,0.00019695,2]
[331256256,1720164634209,-200.0,0.00019701,2]
[331256257,1720164634218,-177.40098,0.00019726,2]
[331256258,1720164634227,-394.51729467,0.00019795,2]
[331256259,1720164634239,-289.3455407,0.00019795,2]
[331256260,1720164634250,-1741.71834463,0.00019795,2]
[331256261,1720164634259,-435.0705987,0.00019795,2]
[331256262,1720164634268,-6459.92152277,0.00019795,2]
[331256263,1720164634279,-423.543727,0.00019795,2]
[331256264,1720164634290,-387.57284054,0.00019795,2]
[331256265,1720164634301,-49675.5478722,0.00019795,2]
[331256266,1720164634312,-3499.02376926,0.00019795,2]
[331256267,1720164634324,-6250.5055144,0.00019795,2]
[331256268,1720164634335,-278.60878409,0.00019795,2]
[331256269,1720164634347,-1115.8023317,0.00019795,2]
[331256270,1720164634359,-2756.11977575,0.00019795,2]
[331256271,1720164634371,-603.38328281,0.00019795,2]
[331256275,1720164639626,-605.30007405,0.00013759,2]
[331256277,1720164639639,-384.2290936,0.00013759,2]
[331256279,1720164639653,-288.3624,0.00013759,2]
[331256281,1720164639665,-1777.0,0.00013759,2]
[331256284,1720164639677,-220.19829354,0.00013759,2]
[331256286,1720164639687,-437.564303,0.0001829,2]
[331256288,1720164639701,-12627.93732343,0.0001829,2]
[331256290,1720164639713,-25177.49837357,0.0001829,2]
[331256292,1720164639724,-312.439,0.0001829,2]
[331256294,1720164639734,-6685.57924028,0.00019795,2]
[331256296,1720164639744,-500.0,0.00019795,2]
[331256298,1720164639755,-500.0,0.00019795,2]
[331256300,1720164639764,-500.0,0.00019795,2]
[331256302,1720164639774,-184.67365,0.000198,2]
[331256304,1720164639784,-1000.0,0.000198,2]
[331256306,1720164639794,-6916.7217827,0.00019809,2]
[331256308,1720164639804,-800.0,0.00019846,2]
[331256310,1720164639814,-2900.0,0.0001985,2]
[331256312,1720164639824,-2800.0,0.0001985,2]
[331256314,1720164639834,-528.7132346,0.00019863,2]
[331256316,1720164639845,-1910.29352192,0.00019897,2]
[331256318,1720164639855,-1175.22514018,0.00019899,5]
[331256320,1720164639865,-5704.52493443,0.000199,2]
[331256322,1720164639875,-456.0,0.000199,3]
[331256324,1720164639885,-205.3567,0.000199,2]
[331256326,1720164639895,-160.20384157,0.000199,2]
[331256328,1720164639906,-327.55329947,0.000199,2]
[331256330,1720164639916,-785.20134825,0.00019963,2]
[331256332,1720164639927,-19804.68706189,0.00019964,2]
[331256334,1720164639939,-155.14429556,0.00019964,2]
[331256337,1720164639951,-255.67407275,0.0001999,2]
[331256338,1720164639961,-78305.6547684,0.0001999,3]
[331256340,1720164639972,-155.0,0.0001999,2]
[331256343,1720164639982,-151.88,0.0001999,2]
[331256345,1720164639993,-63375.87148453,0.0002,4]
[331256347,1720164640004,-2721.44900162,0.0002,7]
[331256349,1720164640017,-10000.0,0.0002,2]
[331256351,1720164640029,-328.3268068,0.0002,2]
[331256353,1720164640039,-867.82451069,0.0002,2]
[331256355,1720164640050,-40000.0,0.0002,5]
[331256357,1720164640061,-257.0,0.0002,2]
[331256359,1720164640070,-1000.0,0.0002,4]
[331256361,1720164640081,-1000.0,0.0002,4]
[331256363,1720164640091,-1000.0,0.0002,4]
[331256365,1720164640102,-6281.61778263,0.0002,2]
[331256367,1720164640112,-6010.69560212,0.0002,7]
[331256369,1720164640123,-3172.88245229,0.0002,2]
[331256371,1720164640133,-1276.61989088,0.0002,2]
[331256385,1720164640254,-307.29060385,0.0002,2]
[331256387,1720164640285,-326.20444061,0.0002,2]
[331256389,1720164640296,-155.0,0.0002,2]
[331256391,1720164640307,-155.22029957,0.0002,3]
[331256393,1720164640318,-293.16009083,0.0002,2]
[331256395,1720164640328,-3765.90469385,0.0002,2]
[331256397,1720164640339,-5289.45901367,0.0002,2]
[331256399,1720164640349,-6040.88141005,0.0002,2]
[331256401,1720164640359,-449.3864648,0.0002,2]
[331256403,1720164640369,-188.11465752,0.0002,2]
[331256405,1720164640380,-290.31234212,0.00020008,2]
[331256407,1720164640393,-695.50208201,0.00020008,2]
[331256410,1720164640405,-2109.83826179,0.00020008,2]
[331256412,1720164640418,-4026.77650109,0.00020008,2]
[331256414,1720164640430,-434.55000021,0.00020008,2]
[331256416,1720164640443,-313.10009245,0.00020008,2]
[331256418,1720164640458,-1112.74417633,0.00020008,2]
[331256420,1720164640469,-3689.14737899,0.0002008,2]
[331256422,1720164640482,-3910.85262101,0.0002008,2]
[331256424,1720164640493,-267.945,0.00020183,2]
[331256425,1720164640504,-2019.62512008,0.000202,2]
[331256426,1720164640514,-2695.74828146,0.00020213,3]
[331256427,1720164640527,-4422.94760658,0.00020213,3]
[331256428,1720164640538,-3271.82090976,0.00020223,2]
[331256429,1720164640551,-1728.17909024,0.00020223,2]
[331256430,1720164640562,-946.68911261,0.00020286,3]
[331256431,1720164640578,-255.53745705,0.00020286,3]
[331256440,1720164640838,-1104.33346155,0.00020286,3]
[331256444,1720164641525,-9535.85349119,0.00020286,3]
[331256445,1720164641536,-8982.823456,0.00020296,2]
[331256447,1720164641545,-174.93431299,0.00020298,2]
[331256449,1720164641555,-1910.29352188,0.00020325,2]
[331256452,1720164641565,-7118.69588804,0.0002038,3]
[331256454,1720164641574,-546.39,0.00020382,2]
[331256455,1720164641588,-7118.69588804,0.00020388,3]
[331256456,1720164641603,-500.0,0.00020398,2]
[331256457,1720164641626,-600.0,0.00020398,2]
[331256458,1720164641642,-2900.0,0.00020398,2]
[331256459,1720164641663,-2800.0,0.00020398,2]
[331256460,1720164641684,-219.63,0.00020493,3]
[331256461,1720164641703,-334.67622311,0.000205,2]
[331256462,1720164641722,-696.0,0.000205,2]
[331256463,1720164641739,-177.40098,0.00020548,2]
[331256464,1720164641754,-11842.4135224,0.0002055,3]
[331256465,1720164641772,-273.09054922,0.00020554,2]
[331256466,1720164641792,-151.88,0.00020559,2]
[331256467,1720164641810,-7118.69588804,0.0002056,3]
[331256468,1720164641825,-11842.4135224,0.00020565,3]
[331256469,1720164641844,-7118.69588804,0.00020569,3]
[331256470,1720164641857,-167.03720229,0.0002057,2]
[331256471,1720164641874,-7118.69588804,0.0002057,3]
[331256472,1720164641891,-7118.69588804,0.00020575,3]
[331256473,1720164641907,-11842.4135224,0.00020575,3]
[331256474,1720164641923,-1064.40851654,0.00020579,5]
[331256475,1720164641939,-7500.0,0.0002058,2]
[331256476,1720164641956,-150.50133856,0.0002058,2]
[331256477,1720164641971,-188.62296826,0.0002058,3]
[331256478,1720164641986,-7118.69588804,0.0002058,3]
[331256479,1720164642001,-11842.4135224,0.0002058,3]
[331256480,1720164642018,-8982.823456,0.00020585,2]
[331256481,1720164642034,-2040.0,0.0002059,2]
[331256482,1720164642050,-21356.0876641,0.0002059,3]
[331256483,1720164642065,-11842.4135224,0.0002059,3]
[331256484,1720164642080,-151.88,0.0002059,2]
[331256485,1720164642096,-39600.8933222,0.000206,2]
[331256486,1720164642112,-11842.4135224,0.00020631,3]
[331256487,1720164642127,-21356.0876641,0.0002064,3]
[331256488,1720164642143,-327.55329943,0.00020648,2]
[331256489,1720164642158,-35527.2405671,0.0002065,3]
[331256490,1720164642174,-151.88,0.0002065,2]
[331256491,1720164642189,-266.22596941,0.00020659,2]
[331256492,1720164642207,-64068.2629924,0.0002066,3]
[331256493,1720164642223,-11842.4135224,0.0002066,3]
[331256494,1720164642238,-151.88,0.0002066,2]
[331256495,1720164642254,-151.88,0.00020669,2]
[331256496,1720164642268,-4857.87391675,0.0002067,2]
[331256497,1720164642284,-260.33,0.0002067,7]
[331256498,1720164642299,-151.0,0.0002067,2]
[331256499,1720164642314,-151.0,0.0002067,2]
[331256500,1720164642329,-350.905033,0.0002067,2]
[331256501,1720164642344,-350.905033,0.0002067,2]
[331256502,1720164642363,-151.0,0.0002067,2]
[331256503,1720164642378,-151.0,0.0002067,2]
[331256504,1720164642392,-151.0,0.0002067,2]
[331256505,1720164642407,-1091.196192,0.0002067,2]
[331256506,1720164642422,-1091.196192,0.0002067,2]
[331256507,1720164642437,-190.649827,0.0002067,2]
[331256508,1720164642453,-157.540408,0.0002067,2]
[331256509,1720164642468,-157.199655,0.0002067,2]
[331256510,1720164642482,-157.199655,0.0002067,2]
[331256511,1720164642496,-151.0,0.0002067,2]
[331256512,1720164642512,-151.0,0.0002067,2]
[331256513,1720164642526,-151.0,0.0002067,2]
[331256514,1720164642541,-189478.616358,0.0002067,3]
[331256515,1720164642556,-151.0,0.0002067,2]
[331256516,1720164642571,-189.400516,0.0002067,2]
[331256517,1720164642593,-2328.035671,0.0002067,2]
[331256518,1720164642608,-2328.035671,0.0002067,2]
[331256519,1720164642623,-151.0,0.0002067,2]
[331256520,1720164642639,-151.0,0.0002067,2]
[331256521,1720164642654,-177.383962,0.0002067,2]
[331256522,1720164642669,-177.383962,0.0002067,2]
[331256523,1720164642683,-151.0,0.0002067,2]
[331256524,1720164642698,-151.0,0.0002067,2]
[331256525,1720164642713,-558.400268,0.0002067,2]
[331256526,1720164642728,-203.31642538,0.0002067,7]
[331256527,1720164642743,-558.400268,0.0002067,2]
[331256528,1720164642756,-168.468756,0.0002067,2]
[331256529,1720164642765,-168.468756,0.0002067,2]
[331256530,1720164642775,-151.88,0.0002067,2]
[331256531,1720164642784,-151.88,0.0002067,2]
[331256532,1720164642794,-151.88,0.0002067,2]
[331256533,1720164642993,-151.88,0.0002067,2]
[331256534,1720164643040,-151.88,0.0002067,2]
[331256535,1720164643052,-151.88,0.0002067,2]
[331256536,1720164643062,-151.0,0.0002067,2]
[331256537,1720164643071,-151.88,0.0002067,2]
[331256538,1720164643081,-151.88,0.0002067,2]
[331256539,1720164643091,-151.88,0.0002067,2]
[331256540,1720164643101,-151.0,0.0002067,2]
[331256541,1720164643111,-151.88,0.0002067,2]
[331256542,1720164643120,-151.88,0.0002067,2]
[331256543,1720164643130,-151.88,0.0002067,2]
[331256544,1720164643140,-151.88,0.0002067,2]
[331256545,1720164643149,-151.88,0.0002067,2]
[331256546,1720164643159,-273.09054922,0.0002067,2]
[331256547,1720164643170,-151.0,0.0002067,2]
[331256548,1720164643180,-151.88,0.00020674,2]
[331256549,1720164643190,-151.88,0.00020674,2]
[331256550,1720164643200,-151.88,0.00020674,2]
[331256551,1720164643209,-151.88,0.00020674,2]
[331256552,1720164643219,-151.88,0.00020674,2]
[331256553,1720164643228,-151.88,0.00020674,2]
[331256554,1720164643238,-151.88,0.00020674,2]
[331256555,1720164643247,-273.09054922,0.00020674,2]
[331256556,1720164643256,-1175.22514019,0.00020678,5]
[331256557,1720164643266,-1128.93444819,0.00020679,5]
[331256558,1720164643275,-304.59253418,0.00020679,2]
[331256559,1720164643284,-2358.68,0.00020679,2]
[331256560,1720164643293,-2000.0,0.00020679,2]
[331256561,1720164643302,-291.32044223,0.00020679,2]
[331256562,1720164643312,-65164.54851828,0.0002068,2]
[331256587,1720164644065,-690.0,0.0001829,2]
[331256589,1720164644077,-264.46269158,0.0001829,2]
[331256591,1720164644088,-875.53730842,0.0001829,2]
[331256592,1720164644098,-151.0,0.0002067,2]
[331256593,1720164644107,-1883.44763317,0.0002068,2]
[331256594,1720164644119,-204847.61370942,0.0002068,2]
[331256595,1720164644131,-1096.89745099,0.0002068,2]
[331256596,1720164645518,-1785.68914033,0.0002068,2]
[331256597,1720164645530,-2049.62127206,0.0002068,2]
[331256598,1720164645542,-328.04999985,0.0002068,2]
[331256599,1720164646978,-370.16245296,0.0002,2]
[331256603,1720164646987,-370.16245296,0.0002,2]
[331256607,1720164646997,-370.16245296,0.0002,2]
[331256609,1720164647007,-370.16245296,0.0002,2]
[331256610,1720164647017,-370.16245296,0.0002,2]
[331256611,1720164647030,-370.16245296,0.0002,2]
[331256612,1720164647040,-151.0,0.0002067,2]
[331256613,1720164647050,-269672.13188994,0.0002068,2]
[331256614,1720164647061,-624.9825,0.0002068,2]
[331256615,1720164647686,-775.59922913,0.00017534,2]
[331256616,1720164647722,-2775.68967099,0.00017534,2]
[331256617,1720164647732,-1658.0,0.00018099,2]
[331256618,1720164647742,-370.16245296,0.0002,2]
[331256619,1720164647752,-370.16245296,0.0002,2]
[331256620,1720164647762,-102534.34494195,0.0002068,2]
[331256621,1720164647774,-925.755,0.0002068,2]
[331256655,1720164672073,159.699987,0.00031599,30]
[331256656,1720164704680,25000.0,0.00031599,30]
[331256657,1720164772167,253.12253517,0.00011199,2]
[331256658,1720164772191,36913.22154643,0.00011199,2]
[331256659,1720164796918,203.983429,0.00025498,120]
[331256660,1720164811915,25000.0,0.00031599,30]
[331256663,1720164927937,25000.0,0.00031599,30]
[331256664,1720164949899,1509.73441489,0.00011199,2]
[331256665,1720164969537,150.0,0.00031599,30]
[331256666,1720164979214,531.23979859,0.00011199,2]
[331256668,1720165033008,500.0,0.00031599,120]
[331256669,1720165037222,18935.08206426,0.00031599,30]
[331256670,1720165045735,156.69839307,0.00011199,2]
[331256671,1720165048376,160.0,0.00031599,30]
[331256672,1720165064628,201.0,0.00031599,30]
[331256673,1720165073601,157.070516,0.00025,62]
[331256674,1720165074462,544.34473262,0.00011199,2]
[331256675,1720165075127,157.070516,0.00025,62]
[331256676,1720165079237,157.070516,0.00025,63]
[331256677,1720165080189,157.070516,0.00025,63]
[331256679,1720165084590,157.070516,0.00025,64]
[331256680,1720165086638,157.070516,0.00025,64]
[331256681,1720165089277,155.0,0.00011199,2]
[331256682,1720165090779,157.070516,0.00025,65]
[331256683,1720165105994,157.070516,0.00025,69]
[331256684,1720165107719,157.070516,0.00025,69]
[331256685,1720165115991,266.43574909,0.00011199,2]
[331256687,1720165147515,240.070516,0.00025,70]